Cogmind - Beta 13 @@@ ROGUE MODE // 2024.04.25 @ 13:55:42 Player: ferbs Result: Destroyed by Y-45 Defender with Heavy Assault Rifle Performance ------------- Evolutions (2) 1000 Regions Visited (5) 1000 Robots Destroyed (53) 265 Value Destroyed (1719) 1719 Prototype IDs (2) 40 Alien Tech Used (0) 0 Bonus (33) 33 TOTAL SCORE: 4057 Bonus ------- High Alert Combat Kills 33 Cogmind --------- Core Integrity 0/550 Matter 1/300 Energy 99/100 System Corruption 0% Temperature Cool (18) Movement Core (100) Ox1 Location -8/Materials Parts ------- > --- POWER (1) -------- (None) > --- PROPULSION (4) --- (None) > --- UTILITY (4) ------ Visual Processing Unit Improved Terrain Scan Processor > --- WEAPON (2) ------- Minigun Minigun > --- INVENTORY (5) ---- Light Ion Engine Medium Armor Plating Particle Gun Minigun Minigun Peak State ------------ > --- POWER ------------ Heavy Ion Engine > --- PROPULSION ------- Aluminum Leg Aluminum Leg Improved Aluminum Leg Carbon-fiber Leg > --- UTILITY ---------- Improved Heat Sink Visual Processing Unit Signal Interpreter Core Shielding > --- WEAPON ----------- Mini Grenade Launcher Enhanced Flamer > --- INVENTORY -------- Ion Engine Aluminum Leg Particle Gun Improved Light Cannon [Rating: 22] Favorites ----------- Power Ion Engine Engine Ion Engine Power Core Light Nuclear Core Propulsion Aluminum Leg Leg Aluminum Leg Hover Unit Improved Hover Unit Flight Unit Flight Unit Utility Signal Interpreter Device Improved Heat Sink Storage High-capacity Storage Unit Processor Signal Interpreter Protection Core Shielding Weapon Particle Gun Energy Gun Particle Gun Energy Cannon EM Pulse Cannon Ballistic Gun Assault Rifle Ballistic Cannon Improved Light Cannon Launcher Mini Grenade Launcher Special Weapon Enhanced Flamer Slashing Weapon Mining Claw Build | -11 -10 -10 -9 -9 -8 ------- Run | Yrd Mat Min Mat Min Mat Slots Evolved 4 | . . . 2 . 2 Power . | . . . . . . Propulsion 2 | . . . 1 . 1 Utility 2 | . . . 1 . 1 Weapon . | . . . . . . Parts Attached 70 | 6 14 4 11 12 23 Power 9 | 1 1 1 1 1 4 Engine 8 | 1 1 . 1 1 4 Core 1 | . . 1 . . . Reactor . | . . . . . . Propulsion 20 | 2 5 . 3 5 5 Treads . | . . . . . . Leg 16 | 2 3 . 3 5 3 Wheel . | . . . . . . Hover 2 | . . . . . 2 Flight 2 | . 2 . . . . Utility 17 | 1 4 2 3 . 7 Device 5 | 1 . 1 1 . 2 Storage 1 | . . . . . 1 Processor 4 | . 2 1 . . 1 Hackware . | . . . . . . Protection 7 | . 2 . 2 . 3 Artifact . | . . . . . . Weapon 24 | 2 4 1 4 6 7 Energy Gun 7 | 1 1 1 . 2 2 Energy Cannon 1 | . . . . . 1 Ballistic Gun 8 | 1 2 . 2 1 2 Ballistic Cannon 2 | . . . 1 . 1 Launcher 4 | . . . 1 2 1 Special Weapon 1 | . . . . 1 . Impact Weapon . | . . . . . . Slashing Weapon 1 | . 1 . . . . Piercing Weapon . | . . . . . . Special Melee Weapon . | . . . . . . Unidentified Prototypes 2 | . . . . 1 1 Parts Lost 29 | . . . 6 3 20 Power 5 | . . . 1 . 4 Propulsion 13 | . . . 4 3 6 Utility 5 | . . . . . 5 Weapon 6 | . . . 1 . 5 Highest Loss Streak 9 | . . . 4 2 9 To Critical Strikes . | . . . . . . Average Slot Usage (%) 86 | . 97 100 93 84 65 Engine 8 | . 14 12 1 11 7 Core 2 | . . 1 9 . . Leg 22 | . 24 28 28 18 15 Device 1 | . 4 4 . . 2 Processor 20 | . 17 23 22 22 16 Protection 7 | . 4 . 10 11 7 Energy Gun 8 | . 9 15 14 4 3 Ballistic Gun 5 | . 14 12 4 . 3 Ballistic Cannon 1 | . . . . 3 . Launcher 4 | . . . 2 10 5 Naked Turns . | . . . . . . Heaviest Build 53 | 7 11 11 12 14 53 Greatest Support 48 | 20 20 20 30 35 48 Greatest Overweight (x) 5 | . 1 . 1 4 5 Average Overweight (x) . | . . . . . . Largest Inventory Capacity 20 | 5 5 5 5 5 20 Average Capacity 5 | 5 5 5 5 5 6 Most Carried 5 | 5 5 5 5 5 5 Average Carried 4 | 3 4 4 4 4 3 Final Capacity 5 | 5 5 5 5 5 5 Final Carried 5 | 5 5 5 5 5 5 Class Distribution -------------------- 61% | Mutant 38% | Scavenger-Mutant Dominant Class ---------------- Mutant | -10/Materials Mutant | -10/Mines Scavenger-Mutant | -9/Materials Mutant | -9/Mines Scavenger-Mutant | -8/Materials Resources | -11 -10 -10 -9 -9 -8 ----------- Run | Yrd Mat Min Mat Min Mat Matter Collected 1258 | 266 199 86 191 365 151 Remotely . | . . . . . . Salvage Created 1328 | 35 157 181 324 316 315 Parts 83 | 4 16 6 21 16 20 Haulers Intercepted 1 | . . . . . 1 Recyclers Shooed 3 | . 3 . . . . Parts Field Recycled . | . . . . . . Retrieved Matter . | . . . . . . Parts Self-Destructed . | . . . . . . Prevented . | . . . . . . Kills | -11 -10 -10 -9 -9 -8 ------- Run | Yrd Mat Min Mat Min Mat Combat Hostiles Destroyed 42 | 1 6 2 11 10 12 Guns 19 | 1 6 2 7 1 2 Cannons 3 | . . . . 3 . AOE 20 | . . . 4 6 10 Classes Destroyed 9 | 1 2 1 3 1 1 Worker 2 | . . . 2 . . Builder 3 | . . . 1 . 2 Hauler 1 | . . . . . 1 Recycler 1 | . . 1 . . . Watcher 4 | . 1 . 2 . 1 Swarmer 6 | . 3 . 3 . . Grunt 29 | 1 3 2 7 8 8 Duelist 4 | . . . . 2 2 Sentry 3 | . . . 1 . 2 Best Kill Streak 10 | 1 3 3 8 3 10 Combat Bots Only 7 | 1 3 2 4 3 7 Max Kills in Single Turn 3 | 1 1 1 3 2 2 Gunslinging . | . . . . . . Exploded 2 | . . . 2 2 2 Melee . | . . . . . . Uniques/NPCs Destroyed . | . . . . . . Combat | -11 -10 -10 -9 -9 -8 -------- Run | Yrd Mat Min Mat Min Mat Hostile Shots Fired 305 | 2 32 6 78 32 155 Missed 95 | . 10 . 29 9 47 Damage Taken 3468 | 20 226 70 620 509 2023 Core 830 | . 109 20 88 52 561 Absorbed by Shields . | . . . . . . Redirected to Shielding 52 | . 8 . 17 8 19 Core Remaining (%) 71 | 100 . 48 . 65 . Volleys Fired 137 | 2 28 6 46 18 37 Largest 2 | 2 2 2 2 2 2 Hottest 130 | 60 85 85 130 110 110 Shots Fired 226 | 4 44 12 83 31 52 Gun 163 | 4 44 12 74 9 20 Cannon 14 | . . . . 9 5 Launcher 45 | . . . 9 10 26 Special 4 | . . . . 3 1 Kinetic 69 | 2 31 6 10 11 9 Thermal 107 | 2 13 6 64 10 12 Explosive 45 | . . . 9 10 26 Electromagnetic 5 | . . . . . 5 Robot Hit Streak 7 | 2 4 3 5 5 7 Robot Miss Streak 6 | 1 3 4 6 2 3 Penetration Max . | . . . . . . Secondary Targets 2 | . 1 . 1 . . Max Gunslinging Chain 1 | . 1 . 1 . . Shots Hit Robots 126 | 3 25 5 45 17 31 Core Hits 96 | 2 10 5 22 16 41 Critical Kills 1 | . 1 . . . . Critical Parts Destroyed . | . . . . . . Critical Strikes 3 | . 1 1 1 . . Burn 2 | . . 1 1 . . Destroy 1 | . 1 . . . . Melee Attacks 1 | . 1 . . . . Impact . | . . . . . . Slashing 1 | . 1 . . . . Piercing . | . . . . . . Sneak Attacks . | . . . . . . Combat Hostiles . | . . . . . . Follow-up Attacks . | . . . . . . Damage Inflicted 4012 | 35 306 74 1101 788 1708 Guns 1283 | 35 306 74 580 100 188 Cannons 214 | . . . . 108 106 Explosions 2481 | . . . 521 558 1402 Melee . | . . . . . . Ramming . | . . . . . . Kinetic 478 | 23 213 11 33 108 90 Thermal 947 | 12 93 63 547 122 110 Explosive 2481 | . . . 521 558 1402 Electromagnetic 106 | . . . . . 106 Impact . | . . . . . . Slashing . | . . . . . . Piercing . | . . . . . . Highest Corruption . | . . . . . . Average Corruption . | . . . . . . Corruption Purged . | . . . . . . Corruption Blocked . | . . . . . . Overload Shots . | . . . . . . Overflow Damage 85 | . . . . 24 61 Projectiles . | . . . . . . Explosions 85 | . . . . 24 61 Melee . | . . . . . . Knockbacks 2 | . . . . 2 . Impact . | . . . . . . Kinetic 2 | . . . . 2 . Secondary . | . . . . . . Self-Inflicted Damage 436 | . . . 29 87 320 Shots 18 | . . . 1 6 11 Rammed 1 | . . . . . 1 Targets Rammed 1 | . . . . . 1 Kicked . | . . . . . . Crushed . | . . . . . . Highest Temperature 482 | 6 210 117 482 99 397 Average Temperature 132 | 6 71 44 168 34 188 Received Heat Transfer 1266 | 12 84 51 237 99 783 Effects 11 | . . . 7 . 4 Shutdowns 4 | . . . 3 . 1 Interference 1 | . . . . . 1 Matter Decay 3 | . . . 2 . 1 Short Circuit 2 | . . . 1 . 1 Damage (minor) 1 | . . . 1 . . Siege Activations . | . . . . . . Robots Corrupted . | . . . . . . Combat Hostiles . | . . . . . . Parts Fried . | . . . . . . Impact Corruptions . | . . . . . . Robots Melted . | . . . . . . Combat Hostiles . | . . . . . . Parts Melted 3 | . . . 3 . . Heat Transferred 2522 | 25 222 222 1369 382 302 Parts Sabotaged . | . . . . . . Parts Stolen . | . . . . . . Parts Stripped . | . . . . . . Power Chain Reactions . | . . . . . . Alert | -11 -10 -10 -9 -9 -8 ------- Run | Yrd Mat Min Mat Min Mat Peak Influence 520 | 20 201 133 295 245 520 Initial 98 | . 13 78 57 98 95 Average 182 | 4 128 89 207 180 284 Maximum Alert Level 2 | . 1 . 1 1 2 Low Security (%) 53 | 100 71 100 38 57 15 Level 1 40 | . 28 . 61 42 58 Level 2 5 | . . . . . 25 Level 3 . | . . . . . . Level 4 . | . . . . . . Level 5 . | . . . . . . High Security . | . . . . . . Max Security . | . . . . . . Squads Dispatched 5 | . 1 . 3 1 . Investigation 2 | . 1 . 1 . . Extermination . | . . . . . . Reinforcement 3 | . . . 2 1 . Assault . | . . . . . . Garrison . | . . . . . . Intercept . | . . . . . . Searches Triggered . | . . . . . . Construction Impeded 2 | . . . 1 1 . Haulers Reinforced . | . . . . . . Active Scanning Responses . | . . . . . . Cargo Convoy Interrupts . | . . . . . . Stealth | -11 -10 -10 -9 -9 -8 --------- Run | Yrd Mat Min Mat Min Mat Distress Signals 5 | . . . 4 . 1 Communications Jammed . | . . . . . . Distress Signals . | . . . . . . Times Spotted 67 | 1 9 5 20 10 22 Peak Tracking Total 8 | 1 3 3 6 3 8 Tactical Retreats 3 | . . . . . 3 Traps | -11 -10 -10 -9 -9 -8 ------- Run | Yrd Mat Min Mat Min Mat Traps Triggered 2 | . 1 . . . 1 Indirectly . | . . . . . . Trap Hack Attempts . | . . . . . . Triggered . | . . . . . . Disarmed . | . . . . . . Reprogrammed . | . . . . . . Reused . | . . . . . . Traps Extracted . | . . . . . . Installed . | . . . . . . Triggered . | . . . . . . Machines | -11 -10 -10 -9 -9 -8 ---------- Run | Yrd Mat Min Mat Min Mat Machines Disabled 8 | . 1 . 2 2 3 Max in Single Turn 2 | . 1 . 1 2 1 Machines Repaired . | . . . . . . Machines Dismantled . | . . . . . . Machines Sabotaged . | . . . . . . Overloaded Fab Kills . | . . . . . . Hacking | -11 -10 -10 -9 -9 -8 --------- Run | Yrd Mat Min Mat Min Mat Machines Accessed 4 | . 2 . 2 . . Terminals 4 | . 2 . 2 . . Fabricators . | . . . . . . Repair Stations . | . . . . . . Recycling Units . | . . . . . . Scanalyzers . | . . . . . . Garrison Access . | . . . . . . Total Hacks 6 | . 2 . 4 . . Successful 3 | . 1 . 2 . . Failed 3 | . 1 . 2 . . Catastrophic . | . . . . . . Database Lockouts . | . . . . . . Manual . | . . . . . . Terminals 6 | . 2 . 4 . . Fabricators . | . . . . . . Repair Stations . | . . . . . . Recycling Units . | . . . . . . Scanalyzers . | . . . . . . Garrison Access . | . . . . . . Terminal Hacks 3 | . 1 . 2 . . Record 1 | . 1 . . . . Recall Investigation 1 | . . . 1 . . Zone Layout 1 | . . . 1 . . Fabricator Hacks . | . . . . . . Repair Station Hacks . | . . . . . . Recycling Unit Hacks . | . . . . . . Scanalyzer . | . . . . . . Garrison Access Hacks . | . . . . . . Unauthorized Hacks . | . . . . . . Terminals . | . . . . . . Fabricators . | . . . . . . Repair Stations . | . . . . . . Recycling Units . | . . . . . . Scanalyzers . | . . . . . . Garrison Access . | . . . . . . Data Cores Recovered . | . . . . . . Used . | . . . . . . Hacking Detections 2 | . 1 . 1 . . Full Trace Events 1 | . . . 1 . . Feedback Events . | . . . . . . Feedback Blocked . | . . . . . . Robot Schematics Acquired . | . . . . . . Robots Built . | . . . . . . Authchips . | . . . . . . Time . | . . . . . . Total Robot Build Rating . | . . . . . . Part Schematics Acquired . | . . . . . . Parts Built . | . . . . . . Authchips . | . . . . . . Time . | . . . . . . Total Part Build Rating . | . . . . . . Parts Repaired . | . . . . . . Time . | . . . . . . Parts Recycled . | . . . . . . Recycled Matter . | . . . . . . Retrieved Matter . | . . . . . . Retrieved Components . | . . . . . . Parts Scanalyzed . | . . . . . . Part Schematics Acquired . | . . . . . . Parts Damaged . | . . . . . . Bothacking | -11 -10 -10 -9 -9 -8 ------------ Run | Yrd Mat Min Mat Min Mat Used RIF Installer . | . . . . . . Robots Hacked . | . . . . . . Non-combat . | . . . . . . Combat . | . . . . . . Robot Hacks Applied . | . . . . . . Relay Couplers Released . | . . . . . . Fabnet Peak Effective % . | . . . . . . Robots Rewired . | . . . . . . Allies Hacked . | . . . . . . Hacks Repelled . | . . . . . . Allies | -11 -10 -10 -9 -9 -8 -------- Run | Yrd Mat Min Mat Min Mat Total Allies . | . . . . . . Largest Group . | . . . . . . Highest-Rated Group . | . . . . . . Highest-Rated Ally . | . . . . . . Total Orders . | . . . . . . Ally Attacks . | . . . . . . Total Damage . | . . . . . . Kills . | . . . . . . Allies Corrupted . | . . . . . . Allies Melted . | . . . . . . Intel | -11 -10 -10 -9 -9 -8 ------- Run | Yrd Mat Min Mat Min Mat Robot Analysis Total . | . . . . . . Derelict Logs Recovered 1 | . . 1 . . . Drone Launches . | . . . . . . Drone Recoveries . | . . . . . . Exploration | -11 -10 -10 -9 -9 -8 ------------- Run | Yrd Mat Min Mat Min Mat Turns Passed 2620 | 99 378 368 512 661 602 Spaces Moved 1646 | 73 252 285 294 420 322 Core 156 | 16 . . . 21 119 Treads . | . . . . . . Legs 1436 | 57 201 285 294 399 200 Wheels . | . . . . . . Hover 3 | . . . . . 3 Flight 51 | . 51 . . . . Fastest Speed 37 | 50 37 120 120 120 50 Average Speed 127 | 104 106 120 123 139 144 Slowest Speed 300 | 120 120 120 190 250 300 Overloaded Moves . | . . . . . . Propulsion Burnouts . | . . . . . . Robots Hopped . | . . . . . . Cave-ins Triggered . | . . . . . . Exploration Rate (%) 36 | 5 45 63 23 55 28 Regions Visited 5 Branch Regions 2 Pre-discovered Areas 2 | . . 2 . . . Known Exits Taken 4 | . 1 1 1 1 . Unknown Exits Taken 1 | 1 . . . . . Scrap Searched 2 | . . 1 . 1 . Spaces Dug 1 | . 1 . . . . Terrain Destroyed 280 | . 1 . 29 98 152 Melee 1 | . 1 . . . . Projectile . | . . . . . . AOE 279 | . . . 29 98 152 Terrain Rammed . | . . . . . . Walls Destroyed . | . . . . . . Machines Disabled . | . . . . . . Actions | -11 -10 -10 -9 -9 -8 --------- Run | Yrd Mat Min Mat Min Mat Total 1939 | 91 316 300 363 462 407 Wait . | . . . . . . Move 1641 | 72 251 284 293 419 322 Hop . | . . . . . . Pick Up 54 | 10 9 2 8 8 17 Fast Attach 14 | 2 5 1 2 4 . Attach 36 | 4 2 1 8 3 18 Detach 4 | . . . 1 . 3 Swap 21 | . 7 2 1 5 6 Drop 29 | 1 13 4 4 5 2 Fire 137 | 2 28 6 46 18 37 Melee 1 | . 1 . . . . Ram 1 | . . . . . 1 Kick . | . . . . . . Crush . | . . . . . . Escape Stasis . | . . . . . . Rewire 1 | . . . . . 1 Trap . | . . . . . . Miscellaneous . | . . . . . . Route ------- -11/Scrapyard -10/Materials (discovered 2 exits: *Mat / *Min) -10/Mines (discovered 2 exits: *Mat x2) -9/Materials -9/Mines -8/Materials (discovered 1 exit: [*Fac]) History --------- Turn | Location | Event 2 | -11/Scrapyard | Met Revision 17 66 | -11/Scrapyard | Discovered new exit (range 8) 100 | -11/Scrapyard | Entered Materials 310 | -10/Materials | Build established: Mutant 373 | -10/Materials | Discovered new exit (range 10) 418 | -10/Materials | Discovered new exit (range 10) 477 | -10/Materials | Identified exit to Mines 478 | -10/Materials | Entered Mines 479 | -10/Mines | Learned location of Storage (-8) 693 | -10/Mines | Learned location of Recycling (-8) 816 | -10/Mines | Discovered new exit (range 15) 844 | -10/Mines | Identified exit to Materials 845 | -10/Mines | Discovered exit to Materials (range 8) 846 | -10/Mines | Entered Materials 846 | -9/Materials | Evolved 2 slots: Propulsion x1, Utility x1 1077 | -9/Materials | Build established: Scavenger-Mutant 1313 | -9/Materials | Lost 4 parts (1p2n1w) 1346 | -9/Materials | Discovered new exit (range 6) 1356 | -9/Materials | Identified exit to Mines 1358 | -9/Materials | Entered Mines 1417 | -9/Mines | Met a Derelict bent on vengeance 1453 | -9/Mines | Discovered new exit (range 13) 1545 | -9/Mines | Build established: Mutant 1845 | -9/Mines | A weapon hastily lodged in a ceiling crevice suddenly fell to the ground 2018 | -9/Mines | Identified exit to Materials 2019 | -9/Mines | Entered Materials 2019 | -8/Materials | Evolved 2 slots: Propulsion x1, Utility x1 2292 | -8/Materials | Lost 9 parts (2p4n2u1w) 2297 | -8/Materials | Destroyed 7 combat bots 2386 | -8/Materials | Discovered new exit (range 3) 2395 | -8/Materials | Core integrity fell below 50% 2512 | -8/Materials | Lost 7 parts (1p2n3u1w) 2604 | -8/Materials | Core integrity fell below 20% 2621 | -8/Materials | Destroyed by Y-45 Defender with Heavy Assault Rifle Last Messages --------------- U-05 Engineer builds a Wall. U-05 Engineer lays Concrete. K-01 Serf collects debris. U-05 Engineer lays Concrete. U-05 Engineer builds a Wall. U-05 Engineer lays Concrete. K-01 Serf collects debris. U-05 Engineer lays Concrete. U-05 Engineer builds a Wall. U-05 Engineer lays Concrete. Acquired Minigun. G-47 Trooper destroyed. K-01 Serf collects debris. Critical hit (Burn: +37). K-01 Serf collects debris. Acquired Med. Armor Plating. [Achievement: Oops] Critical hit (Burn: +37). Slammed into G-50 Soldier. Lgt. Deuterium Engine destroyed. Map ----- +----------------------------------------------------+ | ??????????? # # + | | ??????????? # ####################+##### | | ??????????########## ##############?????????# # | | ???????????????????# +????????# # | | ???????????????????# ##??????????????# # | | ???????????????????# #???????????????### | | ???????????????????# #####+##???????????????+ | | ???????????????????# #??????????????????????### | | ???????????????????# #????????????????????????## | | ???????????????????# %#?????????????????????????? | | ???????????????????# !#?????????????????????????? | | ???????????????????# #?????????????????????????? | | ???????????????????# #?????????????????????????? | | ???????????????????# ###########???????????????? | | ???????????????????# # #???????????????? | | ???????????????????# # """ #???????????????? | | ???????##+########## # """ #???????????????? | | ????? # """ #???????????????? | | ????? + """ #????????????###+ | | ????? # """ ! #????????????# | | ??????###/###### ### # #????????????# | | ???????????????# ??# # #????????????+ T | | ???????????????# ?##+###########????????????# | | ???????????????# ?# Y #???????????????# / | | ???????????????# ??# "T"Y #???????????????## | | ???????????????# ??# g@ #????????????????# | | ???????????????# ???# g #????????????????# | | ??????????????? ????###+#######????????????????# ? | | ????????????????????? ?????????????????????? ?? | | ??????????????????? ????????????????????? ??? | | ?????????????????? ??????????????????? ???? | | ???????????????? ######??????????????????+????? | | ???????????????# #?????????????????????????????? | | ???????????????#?? ??????????????????????????????? | | ????????????????? ???????????????????????????????? | | ???????????????? ????????????????????????????????? | | ??????????????? ?????????????????????????????????? | | ?????????????? ??????????????????????????????????? | | ?????????????????????????????????????????????????? | | ?????????????????????????????????????????????????? | | ?????????????????????????????????????????????????? | | ?????????????????????????????????????????????????? | | ?????????????????????????????????????????????????? | | ?????????????????????????????????????????????????? | | ?????????????????????????????????????????????????? | | ?????????????????????????????????????????????????? | | ?????????????????????????????????????????????????? | | ?????????????????????????????????????????????????? | | ?????????????????????????????????????????????????? | | ?????????????????????????????????????????????????? | +----------------------------------------------------+ Best States ------------- Heat Dissipation 45 Energy Generation 14 Energy Capacity 280 Matter Stores 300 Matter Capacity 300 Sight Range 18 Terrain Scan Range 14 Terrain Scan Density 110 Armor Coverage 450 Core Shielding 20 Evasion (%) 62 Targeting Accuracy 5 Item Schematics ----------------- None Robot Schematics ------------------ None Fabricated ------------ Nothing Alien Tech Used ----------------- None Achievements -------------- Let's See Who's Tougher Oops Remodeling Challenges ------------ None Game ------ Seed HelicalSpectralPit Manual? 0 Play Time 00:38:47 Cumulative 1.9 hours Start 2024.04.25 @ 13:18:35 End 2024.04.25 @ 13:55:42 Sessions 1 Manual Loads 0 Difficulty Rogue Special Mode None Game No. 3 Rogue 3 Adventurer 0 Explorer 0 Win Type - Total 0 Types 0/0/0/0/0/0/0/0/0 Lore% 1 Gallery% 5 Achievement% 5 Wizard Run 0 Options --------- Layout 1 ASCII 0 Keyboard 0 Movement Mouse Keybinds 0 Fullscreen 2 Font 32/SmallcapsGlow Map View 50x35 Zoom Use 0% Tactical HUD 0 Map Filters NONE Filters NONE Steam 1 RUN: 75f14e35-e81c-4b49-a44c-b8abbbf93e45